Cogmind - Beta 12 @@@ ROGUE MODE // 2023.03.03 @ 11:58:38 Player: btmk16 Result: Self-destructed Performance ------------- Evolutions (0) 0 Regions Visited (4) 800 Robots Destroyed (21) 105 Value Destroyed (415) 415 Prototype IDs (23) 460 Alien Tech Used (0) 0 Bonus (300) 300 TOTAL SCORE: 2080 Bonus ------- Aligned with FarCom 300 Cogmind --------- Core Integrity 118/250 Matter 285/300 Energy 100/100 System Corruption 0% Temperature Cool (0) Movement Treading (240) Ox1 Location -9/Mines Parts ------- > --- POWER (1) -------- (None) > --- PROPULSION (2) --- Light Treads > --- UTILITY (2) ------ Large Storage Unit > --- WEAPON (2) ------- Light Assault Rifle > --- INVENTORY (15) --- Light Ion Engine Improved Aluminum Leg Improved Aluminum Leg Improved Aluminum Leg Splice Drone Bay PSU Rigger Medium Laser Assault Rifle Grenade Launcher Grenade Launcher Peak State ------------ > --- POWER ------------ Ion Engine > --- PROPULSION ------- Light Treads Light Treads > --- UTILITY ---------- Heat Sink Large Storage Unit > --- WEAPON ----------- Light Assault Rifle Grenade Launcher > --- INVENTORY -------- Light Ion Engine Light Treads Improved Aluminum Leg Improved Aluminum Leg Improved Aluminum Leg Splice Drone Bay PSU Rigger Medium Laser Assault Rifle Grenade Launcher [Rating: 9] Favorites ----------- Power Ion Engine Engine Ion Engine Propulsion Light Treads Treads Light Treads Utility Heat Sink Device Heat Sink Storage Small Storage Unit Weapon Light Assault Rifle Energy Gun EM Pulse Gun Ballistic Gun Light Assault Rifle Launcher Grenade Launcher Build | -11 -10 -10 -10 -9 ------- Run | Jun Mat Min Exi Min Slots Evolved . | . . . . . Power . | . . . . . Propulsion . | . . . . . Utility . | . . . . . Weapon . | . . . . . Parts Attached 18 | 8 8 1 . 1 Power 2 | 2 . . . . Engine 2 | 2 . . . . Core . | . . . . . Reactor . | . . . . . Propulsion 6 | 2 3 . . 1 Treads 6 | 2 3 . . 1 Leg . | . . . . . Wheel . | . . . . . Hover . | . . . . . Flight . | . . . . . Utility 3 | 1 2 . . . Device 1 | . 1 . . . Storage 2 | 1 1 . . . Processor . | . . . . . Hackware . | . . . . . Protection . | . . . . . Artifact . | . . . . . Weapon 7 | 3 3 1 . . Energy Gun 1 | 1 . . . . Energy Cannon . | . . . . . Ballistic Gun 5 | 2 3 . . . Ballistic Cannon . | . . . . . Launcher 1 | . . 1 . . Special Weapon . | . . . . . Impact Weapon . | . . . . . Slashing Weapon . | . . . . . Piercing Weapon . | . . . . . Special Melee Weapon . | . . . . . Unidentified Prototypes . | . . . . . Parts Lost 6 | . 1 . . 5 Power 1 | . . . . 1 Propulsion 2 | . . . . 2 Utility 1 | . . . . 1 Weapon 2 | . 1 . . 1 Highest Loss Streak 3 | . 1 . . 3 To Critical Strikes . | . . . . . Average Slot Usage (%) 97 | . 97 100 100 89 Engine 12 | . 14 14 14 4 Treads 27 | . 27 28 28 28 Device 12 | . 12 14 14 14 Storage 14 | . 14 14 14 14 Ballistic Gun 21 | . 27 15 14 14 Launcher 6 | . . 12 14 14 Naked Turns . | . . . . . Heaviest Build 30 | 14 29 30 30 30 Greatest Support 40 | 40 40 40 40 40 Greatest Overweight (x) 2 | 2 . . . . Average Overweight (x) . | . . . . . Largest Inventory Capacity 15 | 8 15 15 15 15 Average Capacity 11 | 7 8 15 15 15 Most Carried 11 | 6 8 9 10 11 Average Carried 8 | 4 7 8 9 10 Final Capacity 15 | 8 15 15 15 15 Final Carried 10 | 6 8 9 10 10 Class Distribution -------------------- 100% | Mutant Dominant Class ---------------- Mutant | -10/Materials Mutant | -10/Mines Mutant | -10/Exiles Mutant | -9/Mines Resources | -11 -10 -10 -10 -9 ----------- Run | Jun Mat Min Exi Min Matter Collected 579 | 217 322 . . 40 Remotely . | . . . . . Salvage Created 596 | 107 398 91 . . Parts 35 | 3 28 4 . . Haulers Intercepted 1 | . 1 . . . Recyclers Shooed 1 | 1 . . . . Parts Field Recycled . | . . . . . Retrieved Matter . | . . . . . Parts Self-Destructed . | . . . . . Prevented . | . . . . . Kills | -11 -10 -10 -10 -9 ------- Run | Jun Mat Min Exi Min Combat Hostiles Destroyed 14 | . 10 4 . . Guns 10 | . 10 . . . AOE 4 | . . 4 . . Classes Destroyed 7 | 2 5 . . . Worker 3 | . 3 . . . Tunneler 1 | 1 . . . . Hauler 1 | . 1 . . . Recycler 1 | 1 . . . . Watcher 1 | . 1 . . . Swarmer 6 | . 6 . . . Grunt 8 | . 4 4 . . Best Kill Streak 4 | 1 3 4 . . Combat Bots Only 4 | . 3 4 . . Max Kills in Single Turn 2 | 1 2 2 . . Gunslinging 1 | . 1 . . . Exploded 2 | . . 2 . . Melee . | . . . . . Uniques/NPCs Destroyed . | . . . . . Combat | -11 -10 -10 -10 -9 -------- Run | Jun Mat Min Exi Min Damage Taken 788 | . 419 74 . 295 Core 132 | . 37 15 . 80 Absorbed by Shields . | . . . . . Core Remaining (%) 100 | 100 . . . . Volleys Fired 55 | 5 44 6 . . Largest 2 | 2 2 1 . . Hottest 60 | 60 60 30 . . Shots Fired 104 | 10 88 6 . . Gun 98 | 10 88 . . . Cannon . | . . . . . Launcher 6 | . . 6 . . Special . | . . . . . Kinetic 86 | 5 81 . . . Thermal . | . . . . . Explosive 6 | . . 6 . . Electromagnetic 12 | 5 7 . . . Robot Hit Streak 10 | 5 8 10 . . Robot Miss Streak 5 | 3 5 . . . Penetration Max . | . . . . . Secondary Targets 1 | . 1 . . . Max Gunslinging Chain 1 | . 1 . . . Shots Hit Robots 57 | 6 49 2 . . Core Hits 27 | 2 20 5 . . Critical Kills . | . . . . . Critical Parts Destroyed . | . . . . . Critical Strikes . | . . . . . Melee Attacks . | . . . . . Impact . | . . . . . Slashing . | . . . . . Piercing . | . . . . . Sneak Attacks . | . . . . . Combat Hostiles . | . . . . . Follow-up Attacks . | . . . . . Damage Inflicted 1053 | 124 552 377 . . Guns 636 | 84 552 . . . Cannons . | . . . . . Explosions 417 | 40 . 377 . . Melee . | . . . . . Ramming . | . . . . . Kinetic 527 | 27 500 . . . Thermal 40 | 40 . . . . Explosive 377 | . . 377 . . Electromagnetic 109 | 57 52 . . . Impact . | . . . . . Slashing . | . . . . . Piercing . | . . . . . Highest Corruption . | . . . . . Average Corruption . | . . . . . Corruption Purged . | . . . . . Corruption Blocked . | . . . . . Overload Shots . | . . . . . Overflow Damage 18 | 18 . . . . Projectiles . | . . . . . Explosions 18 | 18 . . . . Melee . | . . . . . Knockbacks . | . . . . . Impact . | . . . . . Kinetic . | . . . . . Secondary . | . . . . . Self-Inflicted Damage . | . . . . . Shots . | . . . . . Rammed . | . . . . . Targets Rammed . | . . . . . Kicked . | . . . . . Crushed . | . . . . . Highest Temperature 69 | . 69 . . . Average Temperature 37 | . 37 . . . Received Heat Transfer 246 | . 150 42 . 54 Siege Activations . | . . . . . Robots Corrupted . | . . . . . Combat Hostiles . | . . . . . Parts Fried 1 | 1 . . . . Impact Corruptions . | . . . . . Robots Melted . | . . . . . Combat Hostiles . | . . . . . Parts Melted . | . . . . . Heat Transferred 50 | 50 . . . . Parts Sabotaged . | . . . . . Parts Stolen . | . . . . . Parts Stripped . | . . . . . Power Chain Reactions 1 | 1 . . . . Missiles Intercepted . | . . . . . Alert | -11 -10 -10 -10 -9 ------- Run | Jun Mat Min Exi Min Peak Influence 213 | 10 213 141 . 5 Initial 19 | . 6 19 . . Average 68 | 3 82 124 . . Maximum Alert Level 1 | . 1 . . . Low Security (%) 99 | 100 99 100 . 100 Level 1 . | . . . . . Level 2 . | . . . . . Level 3 . | . . . . . Level 4 . | . . . . . Level 5 . | . . . . . High Security . | . . . . . Max Security . | . . . . . Squads Dispatched 1 | . 1 . . . Investigation . | . . . . . Extermination . | . . . . . Reinforcement 1 | . 1 . . . Assault . | . . . . . Garrison . | . . . . . Intercept . | . . . . . Searches Triggered . | . . . . . Construction Impeded . | . . . . . Haulers Reinforced . | . . . . . Active Scanning Responses . | . . . . . Cargo Convoy Interrupts . | . . . . . Stealth | -11 -10 -10 -10 -9 --------- Run | Jun Mat Min Exi Min Distress Signals 3 | . 3 . . . Communications Jammed . | . . . . . Distress Signals . | . . . . . Times Spotted 25 | . 18 4 . 3 Peak Tracking Total 4 | . 4 2 . 2 Tactical Retreats 1 | . 1 . . . Traps | -11 -10 -10 -10 -9 ------- Run | Jun Mat Min Exi Min Traps Triggered 2 | . 2 . . . Indirectly . | . . . . . Trap Hack Attempts . | . . . . . Triggered . | . . . . . Disarmed . | . . . . . Reprogrammed . | . . . . . Reused . | . . . . . Traps Extracted . | . . . . . Installed . | . . . . . Triggered . | . . . . . Machines | -11 -10 -10 -10 -9 ---------- Run | Jun Mat Min Exi Min Machines Disabled 2 | . 2 . . . Max in Single Turn 1 | . 1 . . . Machines Repaired . | . . . . . Machines Sabotaged . | . . . . . Overloaded Fab Kills . | . . . . . Hacking | -11 -10 -10 -10 -9 --------- Run | Jun Mat Min Exi Min Machines Accessed 6 | . 4 1 1 . Terminals 4 | . 4 . . . Fabricators . | . . . . . Repair Stations . | . . . . . Recycling Units . | . . . . . Scanalyzers . | . . . . . Garrison Access . | . . . . . Total Hacks 10 | . 8 1 1 . Successful 6 | . 4 1 1 . Failed 4 | . 4 . . . Catastrophic 1 | . 1 . . . Database Lockouts . | . . . . . Manual 6 | . 5 . 1 . Terminals 8 | . 8 . . . Fabricators . | . . . . . Repair Stations . | . . . . . Recycling Units . | . . . . . Scanalyzers . | . . . . . Garrison Access . | . . . . . Terminal Hacks 5 | . 3 1 1 . Robot Analysis 2 | . 2 . . . Open Door 1 | . . 1 . . Zone Layout 1 | . 1 . . . EX-Prototype ID Bank 1 | . . . 1 . Fabricator Hacks . | . . . . . Repair Station Hacks . | . . . . . Recycling Unit Hacks . | . . . . . Scanalyzer . | . . . . . Garrison Access Hacks . | . . . . . Unauthorized Hacks 1 | . 1 . . . Terminals 1 | . 1 . . . Botnet 1 | . 1 . . . Fabricators . | . . . . . Repair Stations . | . . . . . Recycling Units . | . . . . . Scanalyzers . | . . . . . Garrison Access . | . . . . . Data Cores Recovered . | . . . . . Used . | . . . . . Hacking Detections 4 | . 4 . . . Full Trace Events 1 | . 1 . . . Feedback Events . | . . . . . Feedback Blocked . | . . . . . Robot Schematics Acquired . | . . . . . Robots Built . | . . . . . Authchips . | . . . . . Time . | . . . . . Total Robot Build Rating . | . . . . . Part Schematics Acquired . | . . . . . Parts Built . | . . . . . Authchips . | . . . . . Time . | . . . . . Total Part Build Rating . | . . . . . Parts Repaired . | . . . . . Time . | . . . . . Parts Recycled . | . . . . . Recycled Matter . | . . . . . Retrieved Matter . | . . . . . Retrieved Components . | . . . . . Parts Scanalyzed . | . . . . . Part Schematics Acquired . | . . . . . Parts Damaged . | . . . . . Bothacking | -11 -10 -10 -10 -9 ------------ Run | Jun Mat Min Exi Min Used RIF Installer . | . . . . . Robots Hacked . | . . . . . Non-combat . | . . . . . Combat . | . . . . . Robot Hacks Applied . | . . . . . Relay Couplers Released . | . . . . . Fabnet Peak Effective % . | . . . . . Robots Rewired . | . . . . . Allies Hacked . | . . . . . Hacks Repelled . | . . . . . Allies | -11 -10 -10 -10 -9 -------- Run | Jun Mat Min Exi Min Total Allies . | . . . . . Largest Group . | . . . . . Highest-Rated Group . | . . . . . Highest-Rated Ally . | . . . . . Total Orders . | . . . . . Ally Attacks . | . . . . . Total Damage . | . . . . . Kills . | . . . . . Allies Corrupted . | . . . . . Allies Melted . | . . . . . Intel | -11 -10 -10 -10 -9 ------- Run | Jun Mat Min Exi Min Robot Analysis Total 2 | . 2 . . . Derelict Logs Recovered 1 | . . 1 . . Drone Launches . | . . . . . Drone Recoveries . | . . . . . Exploration | -11 -10 -10 -10 -9 ------------- Run | Jun Mat Min Exi Min Turns Passed 2026 | 110 1032 242 344 298 Spaces Moved 1127 | 53 537 141 215 181 Core 8 | 8 . . . . Treads 1119 | 45 537 141 215 181 Legs . | . . . . . Wheels . | . . . . . Hover . | . . . . . Flight . | . . . . . Fastest Speed 50 | 50 160 160 160 160 Average Speed 159 | 150 160 160 160 160 Slowest Speed 160 | 160 160 160 160 160 Overloaded Moves . | . . . . . Propulsion Burnouts . | . . . . . Robots Hopped . | . . . . . Cave-ins Triggered . | . . . . . Exploration Rate (%) 50 | 3 96 33 62 59 Regions Visited 4 Branch Regions 3 Pre-discovered Areas 1 | . . 1 . . Known Exits Taken . | . . . . . Unknown Exits Taken 4 | 1 1 1 1 . Scrap Searched 2 | . . . . 2 Spaces Dug . | . . . . . Terrain Destroyed 30 | 1 . 29 . . Melee . | . . . . . Projectile . | . . . . . AOE 30 | 1 . 29 . . Terrain Rammed . | . . . . . Walls Destroyed . | . . . . . Machines Disabled . | . . . . . Actions | -11 -10 -10 -10 -9 --------- Run | Jun Mat Min Exi Min Total 1256 | 69 632 151 215 189 Wait 41 | . 32 3 . 6 Move 1123 | 52 536 140 214 181 Hop . | . . . . . Pick Up 13 | 4 6 1 1 1 Fast Attach 10 | 6 4 . . . Attach 2 | . 1 . . 1 Detach . | . . . . . Swap 6 | 2 3 1 . . Drop 6 | . 6 . . . Fire 55 | 5 44 6 . . Melee . | . . . . . Ram . | . . . . . Kick . | . . . . . Crush . | . . . . . Escape Stasis . | . . . . . Rewire . | . . . . . Trap . | . . . . . Miscellaneous . | . . . . . Route ------- -11/Junkyard -10/Materials (discovered 4 exits: [*Mat x3] / *Min) -10/Mines -10/Exiles -9/Mines History --------- Turn | Location | Event 32 | -11/Junkyard | Discovered new exit (range 16) 111 | -11/Junkyard | Entered Materials 352 | -10/Materials | Build established: Mutant 356 | -10/Materials | Discovered new exit (range 10) 491 | -10/Materials | Discovered new exit (range 16) 595 | -10/Materials | Discovered new exit (range 16) 833 | -10/Materials | Discovered new exit (range 15) 1143 | -10/Materials | Entered Mines 1170 | -10/Mines | Met a Derelict bent on vengeance 1247 | -10/Mines | Found the Drone Emporium 1254 | -10/Mines | Found Prototype Device 1297 | -10/Mines | Learned location of Zion (-6) 1379 | -10/Mines | Deemed a non-threat by the Exiles lab entrance 1379 | -10/Mines | Discovered new exit (range 5) 1385 | -10/Mines | Entered Exiles 1425 | -10/Exiles | Met 8R-AWN 1451 | -10/Exiles | Met EX-HEX 1499 | -10/Exiles | Met EX-BIN 1521 | -10/Exiles | Aligned with FarCom system 1523 | -10/Exiles | Given EX-Vault access code 1560 | -10/Exiles | Opened EX-Vault 1573 | -10/Exiles | Found PSU Rigger 1607 | -10/Exiles | Warned to stay clear of 0b10 Research branches 1658 | -10/Exiles | Met EX-DEC 1716 | -10/Exiles | Discovered new exit (range 10) 1729 | -10/Exiles | Left Exiles lab with PSU Rigger 1729 | -10/Exiles | Entered Mines 1758 | -9/Mines | YI-UF0 nonchalantly dropped a Grenade Launcher on the ground 2027 | -9/Mines | Core integrity fell below 50% 2027 | -9/Mines | Self-destructed Last Messages --------------- 01819_ Ion Engine destroyed. 01820_ The unstable cave ceiling collapses. 01821_ YI-UF0: "WHOMP!" 01821_ Y-45 Defender destroyed. 01821_ Machine disabled. 01826_ Y-45 Defender destroyed. 01832_ The unstable cave ceiling collapses. 01852_ YI-UF0 mumbles something. 01925_ T-07 Excavator is excavating. 01954_ K-01 Serf collects debris. 01997_ Searching scrap... 01997_ Found Trap Extractor. 01997_ Found ECM Suite. 01997_ Found Hcp. Matter Pod. 01997_ Found Autogun. 01997_ Found 22 Matter. 01998_ Acquired 22 matter. 02026_ Lgt. Treads destroyed. 02026_ Grenade Launcher destroyed. 02026_ Heat Sink destroyed. Map ----- +----------------------------------------------------+ | ??????????# #????????????????????????????????????? | | ??????????# #????????????????????????????????????? | | ??????????# ????????????????????????????????????? | | ?????????? ????????????????????????????????????? | | ?????????? ????????????????????????????????????? | | ??????????## ????????????????????????????????????? | | ????????????#????????????????????????????????????? | | ?????????????????????? ??????????????????????? | | ???????????????????? ????????????????????? | | ??????????????????? #= ???????????????????? | | ??????????????????? = ????????????????????? | | ???????????????????# ????????????????????? | | ???????????????##?## ! ????????????????????? | | ???????????????# # ?????????????????????? | | ???????????????# # % ?????????????????????? | | ???????????????? ?????????????????????? | | ????????????????? ??????????????????????? | | ?????????????????? g ??????????????????????? | | ??????????????????? #??????????????????????? | | ???????????????????? #??????????????????????? | | ????????????????????? ##?????????????????????? | | ?????????????????????# ##???????????#????????? | | ?????????????????????# #????????? #????????? | | #????????????????????# #??????? #????????? | | ##???????????????????# #????? #????????? | | #????????????????# @ #### #????????? | | ???????????????# #???????? | | ????#??????????# #???????? | | ?? ????? ####??????### ####### #???????? | | ????#????? ####?????# ####???????????????????? | | ??????????? ###??## #??????????????????????? | | ##????????# ####[! #??????????????????????? | | #?????????# ! ! #??????????????????????? | | #????###### ### ###??????????????????????? | | #???## ## #?# #????????????????????????? | | ##### #??# #????????????????????????? | | #####??# #????????????????????????? | | ### #??????# #???????? ##?????????????? | | ## ### ##?## #??????# ###??? ##????????????? | | ?# #?####???# #?????## ## ??????????? | | ?# #????????# ####### ??????????? | | ?# #????????# ## ## ## #??????????????? | | ?# #????????# # ##???????????????????? | | ## #????????# #????????????????????? | | ## #????????##### """ #????????????????????? | | #????????????# """ ######????????????????????? | | ##???????????# """ ##?????????????????????????? | | #???????????# #??????????????????????????? | | #??????????# ##??????????????????????????? | | #????????? ####???????????????????????????? | +----------------------------------------------------+ Best States ------------- Heat Dissipation 35 Energy Generation 10 Energy Capacity 250 Matter Stores 300 Matter Capacity 300 Sight Range 16 Terrain Scan Density 10 Evasion (%) 40 Recoil Reduction 2 Item Schematics ----------------- None Robot Schematics ------------------ None Fabricated ------------ Nothing Alien Tech Used ----------------- None Achievements -------------- None Challenges ------------ None Game ------ Seed TargetingWeightDoublenader Manual? 0 Play Time 00:12:59 Cumulative 543.3 hours Start 2023.03.03 @ 11:10:17 End 2023.03.03 @ 11:58:38 Sessions 1 Manual Loads 0 Difficulty Rogue Special Mode None Game No. 604 Rogue 603 Adventurer 0 Explorer 1 Win Type - Total 22 Types 15/0/4/3/0/0/0/0/0 Lore% 80 Gallery% 90 Achievement% 74 Wizard Run 0 Options --------- ASCII 0 Keyboard 1 Movement Vi Keybinds 0 Fullscreen 1 Font 18/SmallcapsGlow Map View 76x50 Tactical HUD 1 Map Filters NONE Filters NONE Steam 1 RUN: a5950368-d0d7-4469-9450-580f8e364429